Cogmind - Beta 16.1 @@@ ROGUE MODE // 2026.04.30 @ 21:12:52 Player: SoyBison Result: Destroyed by UR-EBP(R) with Subdweller Laser Performance ------------- Evolutions (0) 0 Regions Visited (3) 600 Robots Destroyed (7) 35 Value Destroyed (70) 70 Prototype IDs (3) 60 Alien Tech Used (0) 0 Bonus (0) 0 TOTAL SCORE: 765 Bonus ------- None Cogmind --------- Core Integrity 0/250 Matter 289/300 Energy 100/100 System Corruption 0% Temperature Cool (6) Movement Core (50) Location -10/Subcaves Parts ------- > --- POWER (1) -------- (None) > --- PROPULSION (2) --- (None) > --- UTILITY (2) ------ (None) > --- WEAPON (2) ------- (None) > --- INVENTORY (5) ---- Small Storage Unit ECM Suite Tractor Beam Light Assault Rifle Peak State ------------ > --- POWER ------------ Light Ion Engine > --- PROPULSION ------- Aluminum Leg Aluminum Leg > --- UTILITY ---------- Scrap Shield > --- WEAPON ----------- Light Assault Rifle Light Assault Rifle > --- INVENTORY -------- ECM Suite Tractor Beam Light Assault Rifle [Rating: 9] Favorites ----------- Power Light Ion Engine Engine Light Ion Engine Propulsion Aluminum Leg Leg Aluminum Leg Utility Small Storage Unit Device Terrain Scanner Storage Small Storage Unit Protection Scrap Shield Weapon Assault Rifle Ballistic Gun Assault Rifle Build | -11 -10 -10 -10 ------- Run | Yrd Mat Min Sub Slots Evolved . | . . . . Power . | . . . . Propulsion . | . . . . Utility . | . . . . Weapon . | . . . . Parts Attached 12 | 6 3 1 2 Power 1 | 1 . . . Engine 1 | 1 . . . Core . | . . . . Reactor . | . . . . Propulsion 2 | 2 . . . Treads . | . . . . Leg 2 | 2 . . . Wheel . | . . . . Hover . | . . . . Flight . | . . . . Utility 4 | 1 2 . 1 Device 2 | . 2 . . Storage 1 | 1 . . . Processor . | . . . . Hackware . | . . . . Protection 1 | . . . 1 Artifact . | . . . . Weapon 5 | 2 1 1 1 Energy Gun . | . . . . Energy Cannon . | . . . . Ballistic Gun 5 | 2 1 1 1 Ballistic Cannon . | . . . . Launcher . | . . . . Special Weapon . | . . . . Impact Weapon . | . . . . Slashing Weapon . | . . . . Piercing Weapon . | . . . . Special Melee Weapon . | . . . . Unidentified Prototypes . | . . . . Parts Lost 6 | . . . 6 Power 1 | . . . 1 Propulsion 2 | . . . 2 Utility 1 | . . . 1 Weapon 2 | . . . 2 Highest Loss Streak 6 | . . . 6 To Critical Strikes . | . . . . Average Backups 1 | . 1 2 3 Power . | . . . . Propulsion . | . . . . Utility 1 | . 1 2 2 Weapon . | . . . 1 Tool/Special . | . . . . Unused Backups 2 | . 1 . 1 Power . | . . . . Propulsion . | . . . . Utility 2 | . 1 . 1 Weapon . | . . . . Tool/Special . | . . . . Average Slot Usage (%) 95 | . 97 100 80 Engine 13 | . 14 14 12 Leg 27 | . 28 28 26 Device 10 | . 11 14 . Storage 11 | . 13 14 . Protection 1 | . . . 11 Ballistic Gun 27 | . 28 28 27 Peak Build Rating 9 | 6 7 7 9 Average Rating 6 | 4 6 7 8 On Entrance 5 | . 6 7 7 Avg Prop Armor Cover (%) . | . . . . Naked Turns 2 | . . . 2 Heaviest Build 23 | 12 14 12 23 Greatest Support 20 | 20 20 20 20 Greatest Overweight (x) 1 | . . . 1 Average Overweight (x) . | . . . . Largest Inventory Capacity 8 | 8 8 8 8 Average Capacity 7 | 7 7 8 5 Most Carried 5 | 1 3 4 5 Average Carried 1 | . 1 2 3 Final Capacity 8 | 8 8 8 5 Final Carried 4 | . 3 3 4 Class Distribution -------------------- 100% | Mutant Dominant Class ---------------- Mutant | -10/Materials Mutant | -10/Mines Mutant | -10/Subcaves Resources | -11 -10 -10 -10 ----------- Run | Yrd Mat Min Sub Matter Collected 398 | 254 66 47 31 Remotely . | . . . . Salvage Created 113 | . 66 47 . Parts 15 | . 9 6 . Haulers Intercepted . | . . . . Recyclers Shooed . | . . . . Parts Field Recycled . | . . . . Retrieved Matter . | . . . . Parts Self-Destructed . | . . . . Prevented . | . . . . Parts Restored . | . . . . Kills | -11 -10 -10 -10 ------- Run | Yrd Mat Min Sub Combat Hostiles Destroyed 7 | . 4 3 . Guns 7 | . 4 3 . Classes Destroyed 1 | . 1 . . Swarmer 7 | . 4 3 . Best Kill Streak 3 | . 3 3 . Combat Bots Only 3 | . 3 3 . Max Kills in Single Turn 1 | . 1 1 . Gunslinging . | . . . . Exploded . | . . . . Melee . | . . . . Uniques/NPCs Destroyed . | . . . . Combat | -11 -10 -10 -10 -------- Run | Yrd Mat Min Sub Hostile Shots Fired 84 | . 26 12 46 Missed 19 | . 8 1 10 Hits 65 | . 18 11 36 Projectile 65 | . 18 11 36 Critical Strikes 1 | . . . 1 Damage Taken 992 | . 152 83 757 Core 269 | . 37 26 206 Absorbed by Shields . | . . . . Core Remaining (%) 100 | 100 . . . Volleys Fired 26 | . 10 8 8 Largest 2 | . 2 2 2 Hottest 40 | . 40 40 40 Shots Fired 51 | . 20 16 15 Gun 51 | . 20 16 15 Cannon . | . . . . Launcher . | . . . . Special . | . . . . Kinetic 51 | . 20 16 15 Thermal . | . . . . Explosive . | . . . . Electromagnetic . | . . . . Robot Hit Streak 9 | . 1 2 9 Robot Miss Streak 5 | . 5 3 2 Penetration Max . | . . . . Secondary Targets 2 | . 2 . . Max Gunslinging Chain 1 | . 1 . . Shots Hit Robots 23 | . 5 6 12 Core Hits 12 | . 4 3 5 Critical Kills 1 | . 1 . . Critical Parts Destroyed . | . . . . Critical Strikes 1 | . 1 . . Destroy 1 | . 1 . . Melee Attacks . | . . . . Impact . | . . . . Slashing . | . . . . Piercing . | . . . . Sneak Attacks . | . . . . Combat Hostiles . | . . . . Follow-up Attacks . | . . . . Damage Inflicted 250 | . 53 68 129 Guns 228 | . 53 58 117 Cannons . | . . . . Explosions . | . . . . Melee . | . . . . Ramming 22 | . . 10 12 Kinetic 228 | . 53 58 117 Thermal . | . . . . Explosive . | . . . . Electromagnetic . | . . . . Impact . | . . . . Slashing . | . . . . Piercing . | . . . . Highest Corruption . | . . . . Average Corruption . | . . . . Corruption Purged . | . . . . Corruption Blocked . | . . . . Overload Shots . | . . . . Overflow Damage . | . . . . Projectiles . | . . . . Explosions . | . . . . Melee . | . . . . Knockbacks . | . . . . Impact . | . . . . Kinetic . | . . . . Secondary . | . . . . Self-Inflicted Damage 4 | . . . 4 Shots . | . . . . Rammed 2 | . . . 2 Targets Rammed 4 | . . 1 3 Kicked 2 | . . 1 1 Crushed . | . . . . Highest Temperature 285 | . . . 285 Average Temperature 148 | . . . 148 Received Heat Transfer 422 | . . . 422 Siege Activations . | . . . . Martial Activations . | . . . . Shielding Activations . | . . . . Robots Disrupted . | . . . . Combat Hostiles . | . . . . Robots Corrupted . | . . . . Combat Hostiles . | . . . . Parts Fried . | . . . . Impact Corruptions . | . . . . Robots Melted . | . . . . Combat Hostiles . | . . . . Parts Melted . | . . . . Heat Transferred . | . . . . Parts Sabotaged . | . . . . Parts Stolen . | . . . . Parts Stripped . | . . . . Power Chain Reactions . | . . . . Alert | -11 -10 -10 -10 ------- Run | Yrd Mat Min Sub Maximum Alert Level . | . . . . Low Security (%) 100 | 100 100 100 . Level 1 . | . . . . Level 2 . | . . . . Level 3 . | . . . . Level 4 . | . . . . Level 5 . | . . . . High Security . | . . . . Max Security . | . . . . Peak Influence 62 | . 62 60 . Initial 2 | . . 2 . Average 10 | . 12 11 . Influence Increases 165 | . 95 70 . Destroy 0b10 Robot/C 140 | . 80 60 . Destroy Leader 20 | . 10 10 . Successful Hack 5 | . 5 . . Influence Decreases 165 | . 88 77 . Entered New Map 5 | . . 5 . Time Decay 160 | . 88 72 . Squads Dispatched . | . . . . Investigation . | . . . . Extermination . | . . . . Reinforcement . | . . . . Assault . | . . . . Garrison . | . . . . Intercept . | . . . . Searches Triggered . | . . . . Construction Impeded . | . . . . Haulers Reinforced . | . . . . Active Scanning Responses . | . . . . Cargo Convoy Interrupts . | . . . . Stealth | -11 -10 -10 -10 --------- Run | Yrd Mat Min Sub Distress Signals 1 | . 1 . . Communications Jammed . | . . . . Distress Signals . | . . . . Times Spotted 17 | . 6 3 8 Peak Tracking Total 6 | . 3 3 6 Tactical Retreats . | . . . . Traps | -11 -10 -10 -10 ------- Run | Yrd Mat Min Sub Traps Triggered . | . . . . Indirectly . | . . . . Trap Hack Attempts . | . . . . Triggered . | . . . . Disarmed . | . . . . Reprogrammed . | . . . . Reused . | . . . . Traps Extracted . | . . . . Installed . | . . . . Triggered . | . . . . Machines | -11 -10 -10 -10 ---------- Run | Yrd Mat Min Sub Machines Disabled . | . . . . Max in Single Turn . | . . . . Machines Repaired . | . . . . Machines Dismantled . | . . . . Machines Sabotaged . | . . . . Overloaded Fab Kills . | . . . . Hacking | -11 -10 -10 -10 --------- Run | Yrd Mat Min Sub Machines Accessed 3 | . 3 . . Terminals 3 | . 3 . . Fabricators . | . . . . Repair Stations . | . . . . Recycling Units . | . . . . Scanalyzers . | . . . . Garrison Access . | . . . . Total Hacks 8 | . 8 . . Successful 3 | . 3 . . Failed 5 | . 5 . . Catastrophic . | . . . . Database Lockouts . | . . . . Manual . | . . . . Terminals 8 | . 8 . . Fabricators . | . . . . Repair Stations . | . . . . Recycling Units . | . . . . Scanalyzers . | . . . . Garrison Access . | . . . . Terminal Hacks 3 | . 3 . . Prototype ID Bank 2 | . 2 . . Dispatch Records 1 | . 1 . . Fabricator Hacks . | . . . . Repair Station Hacks . | . . . . Recycling Unit Hacks . | . . . . Scanalyzer . | . . . . Garrison Access Hacks . | . . . . Unauthorized Hacks . | . . . . Terminals . | . . . . Fabricators . | . . . . Repair Stations . | . . . . Recycling Units . | . . . . Scanalyzers . | . . . . Garrison Access . | . . . . Data Cores Recovered . | . . . . Used . | . . . . Hacking Detections . | . . . . Full Trace Events . | . . . . Feedback Events . | . . . . Feedback Blocked . | . . . . Robot Schematics Acquired . | . . . . Robots Built . | . . . . Authchips . | . . . . Time . | . . . . Total Robot Build Rating . | . . . . Part Schematics Acquired . | . . . . Parts Built . | . . . . Authchips . | . . . . Time . | . . . . Total Part Build Rating . | . . . . Part Studies Acquired . | . . . . Parts Repaired . | . . . . Time . | . . . . Parts Recycled . | . . . . Recycled Matter . | . . . . Retrieved Matter . | . . . . Retrieved Components . | . . . . Parts Scanalyzed . | . . . . Part Schematics Acquired . | . . . . Parts Damaged . | . . . . Bothacking | -11 -10 -10 -10 ------------ Run | Yrd Mat Min Sub Used RIF Installer . | . . . . Robots Hacked . | . . . . Non-combat . | . . . . Combat . | . . . . Robot Hacks Applied . | . . . . Relay Couplers Released . | . . . . Fabnet Peak Effective % . | . . . . Robots Rewired . | . . . . Allies Hacked . | . . . . Hacks Repelled . | . . . . Allies | -11 -10 -10 -10 -------- Run | Yrd Mat Min Sub Total Allies . | . . . . Largest Group . | . . . . Highest-Rated Group . | . . . . Highest-Rated Ally . | . . . . Total Orders . | . . . . Ally Attacks . | . . . . Total Damage . | . . . . Kills . | . . . . Allies Corrupted . | . . . . Allies Melted . | . . . . Intel | -11 -10 -10 -10 ------- Run | Yrd Mat Min Sub Active Infowar (turns) 944 | . 531 406 7 Terrain 700 | . 287 406 7 ECM 246 | . 246 . . Robot Analysis Total . | . . . . Derelict Logs Recovered . | . . . . Drone Launches . | . . . . Drone Recoveries . | . . . . Exploration | -11 -10 -10 -10 ------------- Run | Yrd Mat Min Sub Turns Passed 1332 | 122 631 406 173 Spaces Moved 969 | 111 472 312 74 Core 28 | 28 . . . Treads . | . . . . Legs 941 | 83 472 312 74 Wheels . | . . . . Hover . | . . . . Flight . | . . . . Fastest Speed 50 | 50 120 120 120 Average Speed 123 | 102 120 120 186 Slowest Speed 190 | 120 120 120 190 Overloaded Moves . | . . . . Propulsion Burnouts . | . . . . Robots Hopped . | . . . . Potential Cave-ins . | . . . . Cave-ins Triggered . | . . . . Exploration Rate (%) 20 | 4 40 29 7 Regions Visited 3 Branch Regions 2 Pre-discovered Areas . | . . . . Known Exits Taken . | . . . . Unknown Exits Taken 3 | 1 1 1 . Scrap Searched . | . . . . Spaces Dug . | . . . . Terrain Destroyed . | . . . . Melee . | . . . . Projectile . | . . . . AOE . | . . . . Terrain Rammed . | . . . . Walls Destroyed . | . . . . Machines Disabled . | . . . . Actions | -11 -10 -10 -10 --------- Run | Yrd Mat Min Sub Total 1059 | 117 515 329 98 Wait 29 | . 22 4 3 Move 966 | 110 471 311 74 Hop . | . . . . Pick Up 11 | 1 5 2 3 Fast Attach 7 | 5 1 . 1 Attach 3 | 1 1 . 1 Detach . | . . . . Swap 5 | . 3 1 1 Drop 8 | . 2 2 4 Fire 26 | . 10 8 8 Melee . | . . . . Ram 2 | . . . 2 Kick 2 | . . 1 1 Crush . | . . . . Escape Stasis . | . . . . Rewire . | . . . . Trap . | . . . . Miscellaneous . | . . . . Route ------- -11/Scrapyard -10/Materials (discovered 2 exits: [*Mat] / [*Min]) -10/Mines (discovered 2 exits: [*Mat] / [*Sub]) -10/Subcaves History --------- Turn | Location | Event 4 | -11/Scrapyard | Discovered new exit (range 15) 123 | -11/Scrapyard | Entered Materials 127 | -10/Materials | Discovered new exit (range 16) 301 | -10/Materials | Build established: Mutant 585 | -10/Materials | Discovered new exit (range 15) 754 | -10/Materials | Entered Mines 809 | -10/Mines | Discovered new exit (range 9) 906 | -10/Mines | Discovered new exit (range 6) 1160 | -10/Mines | Entered Subcaves 1206 | -10/Subcaves | A swath of the cavern ceiling suddenly collapsed 1307 | -10/Subcaves | Ambushed by swarm of Subdwellers 1310 | -10/Subcaves | Ambushed by Subdwellers from Twisted Machinery 1326 | -10/Subcaves | Core integrity fell below 50% 1332 | -10/Subcaves | Core integrity fell below 20% 1333 | -10/Subcaves | Destroyed by UR-EBP(R) with Subdweller Laser Last Messages --------------- KQ-5Y8(R) suffers critical hit (Destroy). KQ-5Y8(R) destroyed. 1Z-3BU(R) suffers critical hit (Destroy). 1Z-3BU(R) destroyed. 9J-LT0(R) emerges from the Twisted Machinery. UR-EBP(R) emerges from the Twisted Machinery. 58-6WO(h) destroyed. Scrap Shield destroyed. Lgt. Ion Engine destroyed. Aluminum Leg destroyed. UR-EBP(R) affixes Scrap Shield Fragment to Scrap Shield. Lgt. Assault Rifle destroyed. Kicked UR-EBP(R) out of the way. Acquired 27 matter. Aluminum Leg destroyed. Slammed into UR-EBP(R). Acquired 4 matter. Subatomizers dissect the Sub. Beam Cannon. Slammed into H1-UZJ(R). Map ----- +----------------------------------------------------+ | ?????????????????????????????????????????????????? | | ?????????????????????????????????????????????????? | | ?????????????????????????????????????????????????? | | ?????????????????????????????????????????????????? | | ?????????????????????????????????????????????????? | | ?????????????????????????????????????????????????? | | ?????????????????????????????????????????????????? | | ?????????????????????????????????????????????????? | | ?????????????????????????????????????????????????? | | ?????????????????????????????????????????????????? | | ?????????????????????????????????????????????????? | | ?????????????????????????????????????????????????? | | ??########???????????????????????????????????????? | | ?## ##??????????????????????????????????????? | | ?# #??????###?????????????????????????????? | | ?# & ##????? ###??##??????????????????????? | | ?## #?????? ## ##?????????????????????? | | ##### ##?????? #?????????????????????? | | ?# #???#### ? ??????????????????????? | | ?## # ###?## # ? #??????????????????????? | | ## #### ### ## ##?????????????????????? | | ## #??# ## #?????????????????????? | | #?# # ## #??????????????????????? | | # ## #?# # =#??????????????????????? | | #" #???# *!###????????????????????? | | #"# ### ####???# !R@RR##???????????????????? | | "#" ############ !!RRR"#???????????????????? | | #### ## ## ## ##] "#???????????????????? | | # ## ##### % ??????????????? | | #" #????#######?????????????? | | #""# # # ##????????????????????????? | | ##""" ####?????????????????????????? | | ?#"" #???????????????????????????? | | ?## # ### #???????????????????????????? | | ? ###?# #???????????????????????????? | | # #??? #???????????????????????????? | | # #####?? #??????????????????????????? | | ## ##??????#### #??????????????????????????? | | ?### #???????????# #??????????????????????????? | | ???# #???????????? #??????????????????????????? | | ??? ???????????? #??????????????????????????? | | ??# ???????????? #??????????????????????????? | | ??## ???????????? #??????????????????????????? | | ???## #?????????????#??????????????????????????? | | ????? ?????????????????????????????????????????? | | ?????????????????????????????????????????????????? | | ?????????????????????????????????????????????????? | | ?????????????????????????????????????????????????? | | ?????????????????????????????????????????????????? | | ?????????????????????????????????????????????????? | +----------------------------------------------------+ Best States ------------- Heat Dissipation 25 Energy Generation 10 Energy Capacity 125 Matter Stores 294 Matter Capacity 300 Sight Range 16 Terrain Scan Range 14 Terrain Scan Density 10 ECM Strength 1 Armor Coverage 800 Evasion (%) 55 Item Schematics ----------------- None Robot Schematics ------------------ None Fabricated ------------ Nothing Repaired ---------- Nothing Studied --------- None Alien Tech Used ----------------- None Achievements -------------- For Emergencies Only Challenges ------------ None Game ------ Seed CannonPlexusHammer Manual? 0 Play Time 00:25:42 Cumulative 1.2 hours Start 2026.04.30 @ 20:35:22 End 2026.04.30 @ 21:12:52 Sessions 1 Manual Loads 0 Difficulty Rogue Special Mode None Game No. 4 Rogue 4 Adventurer 0 Explorer 0 Win Type - Total 0 Types 0/0/0/0/0/0/0/0/0/0 Lore% 3 Gallery% 3 Achievement% 3 Wizard Run 0 Options --------- Layout 1 ASCII 0 Keyboard 1 Movement Vi Keybinds 0 Fullscreen 1 Font 32/SmallcapsGlow Map View 50x35 Zoom Use 0% Tactical HUD 0 Map Filters NONE Filters NONE Steam 1 RUN: 1ac7f218-6cc1-4e0e-8e0c-e14f45c6179b